fUSD/lending_fUSD_20250628
["ID","MTS","AMOUNT","RATE_DAILY","PERIOD"]
[368287307,1751093432747,-1670.81080475,0.00038,2]
[368287309,1751093432758,-790.25782199,0.00038,2]
[368287311,1751093432769,-291.10000002,0.00038,2]
[368287313,1751093432780,-311.88590251,0.00038,2]
[368287315,1751093432792,-4008.60135854,0.00038,2]
[368287317,1751093432811,-1960.89214452,0.00038,2]
[368287319,1751093432823,-33009.6414565,0.00038,2]
[368287321,1751093432834,-44386.53621181,0.00038,2]
[368287323,1751093432849,-171227.66703163,0.00038,2]
[368287325,1751093432860,-1923.21789754,0.00038,2]
[368287330,1751093432902,-606.54860783,0.00038,2]
[368287332,1751093432913,-9000.53518099,0.00038,2]
[368287334,1751093432925,-631.28093403,0.00038,2]
[368287624,1751093437340,-10454.91467807,0.00038,2]
[368287625,1751093437351,-27269.28742094,0.00038,2]
[368287626,1751093437466,-5352.37199448,0.00038,2]
[368287627,1751093437602,-1454.3225435,0.00038,2]
[368287628,1751093437614,-916.34,0.00038,2]
[368287629,1751093437626,-4129.8,0.00038,2]
[368287819,1751093439725,-151.0,0.0003799,7]
[368287821,1751093439734,-3119.10057007,0.00038,2]
[368287824,1751093439746,-2317.92958918,0.00038,2]
[368287826,1751093439757,-619.17723789,0.00038,2]
[368287828,1751093439769,-4475.39700594,0.00038,2]
[368287830,1751093439780,-3230.51025609,0.00038,2]
[368287832,1751093439792,-11702.14511245,0.00038,2]
[368287835,1751093439804,-472.103262,0.00038,2]
[368287837,1751093439814,-1314.8802207,0.00038,2]
[368287842,1751093439929,-1803.48363494,0.00038,2]
[368288103,1751093442494,-354.31833141,0.00038,2]
[368288107,1751093442521,-787.55754385,0.00038,2]
[368288110,1751093442532,-664.05658032,0.00038,2]
[368288135,1751093442776,-182339.83934919,0.00038,2]
[368288423,1751093445577,-5999.99999626,0.00038,2]
[368288446,1751093445794,-4550.80000004,0.00038,2]
[368288448,1751093445806,-10557.0,0.00038,2]
[368289212,1751093618813,250.0,0.00015,2]
[368289213,1751093619879,300.0,0.00017,2]
[368289214,1751094224807,1000.0,0.000267,10]
[368289216,1751094334550,150.0,0.00028,2]
[368289217,1751094342738,159.44,0.00013699,2]
[368289227,1751094631578,-936.79460021,0.00035,2]
[368289228,1751094631705,-1192.49994515,0.00035,2]
[368289229,1751094631819,-72.70545464,0.00035,2]
[368289230,1751094631830,-168.0,0.00035027,2]
[368289231,1751094631840,-157.11170575,0.00035909,3]
[368289232,1751094631849,-200.0,0.00036017,2]
[368289233,1751094631859,-205.541221,0.00036255,2]
[368289234,1751094631869,-150.0,0.00036293,2]
[368289235,1751094631880,-150.0,0.00036324,3]
[368289236,1751094631890,-150.0,0.00036324,3]
[368289237,1751094631900,-150.0,0.00036324,3]
[368289238,1751094631910,-1000.0,0.00036345,2]
[368289239,1751094631920,-127.78685884,0.0003635,3]
[368289240,1751094631936,-472.21314116,0.0003635,3]
[368289241,1751094631946,-300.0,0.00036351,3]
[368289242,1751094631956,-400.0,0.00036351,2]
[368289243,1751094631966,-1531.0,0.00036351,3]
[368289244,1751094631976,-22758.66807984,0.00036352,2]
[368289245,1751094631988,-1297.67192016,0.00036352,2]
[368289246,1751094631999,-1917.15,0.00036355,120]
[368289247,1751094632009,-115.81649433,0.00036355,2]
[368289248,1751094632021,-2681.36558463,0.00036355,2]
[368289249,1751094632032,-2687.42860783,0.00036355,2]
[368289251,1751094632043,-353.57,0.00036355,2]
[368289253,1751094632056,-364.73919525,0.00036355,2]
[368289255,1751094632071,-1404.68011796,0.00036355,2]
[368289258,1751094632081,-200.0,0.00036421,2]
[368289259,1751094632089,-250.0,0.00036443,2]
[368289261,1751094632099,-165.61,0.00036455,2]
[368289263,1751094632108,-774.48,0.00036476,2]
[368289264,1751094632118,-153.58,0.00036824,2]
[368289266,1751094632127,-29.95917161,0.000369,35]
[368289268,1751094632142,-247.4726066,0.000369,35]
[368289271,1751094632151,-1459.91555787,0.0003691,2]
[368289273,1751094632161,-207.1262,0.0003691,2]
[368289275,1751094632170,-849.4,0.00036933,2]
[368289277,1751094632179,-462.59,0.00036941,2]
[368289279,1751094632188,-799.17,0.00036941,2]
[368289280,1751094632197,-799.17,0.00036941,2]
[368289282,1751094632207,-462.59,0.00036941,2]
[368289284,1751094632216,-849.4,0.00036942,2]
[368289286,1751094632225,-849.4,0.00036952,2]
[368289288,1751094632235,-206.63444213,0.00036954,2]
[368289290,1751094632244,-849.4,0.00036962,2]
[368289292,1751094632254,-849.4,0.00036971,2]
[368289293,1751094632263,-657.25,0.00036976,2]
[368289295,1751094632272,-11469.86,0.00036976,2]
[368289297,1751094632281,-849.4,0.00036981,2]
[368289299,1751094632290,-500.0,0.00036981,2]
[368289300,1751094632299,-849.4,0.00036991,2]
[368289302,1751094632309,-849.4,0.00037001,2]
[368289304,1751094632318,-849.4,0.0003701,2]
[368289306,1751094632327,-849.4,0.0003702,2]
[368289308,1751094632337,-849.4,0.0003703,2]
[368289309,1751094632346,-849.4,0.0003704,2]
[368289311,1751094632356,-799.17,0.00037041,2]
[368289313,1751094632365,-462.59,0.00037041,2]
[368289315,1751094632374,-849.4,0.00037049,2]
[368289316,1751094632383,-849.4,0.00037059,2]
[368289318,1751094632392,-849.4,0.00037069,2]
[368289320,1751094632402,-180.87146764,0.00037078,47]
[368289322,1751094632413,-13.87153236,0.00037078,47]
[368289324,1751094632422,-849.4,0.00037078,2]
[368289326,1751094632431,-805.90783145,0.00037088,2]
[368289455,1751094637688,-43.49216855,0.00037088,2]
[368289456,1751094637698,-849.4,0.00037098,2]
[368289457,1751094637709,-849.4,0.00037108,2]
[368289458,1751094637719,-849.4,0.00037117,2]
[368289459,1751094637728,-666.0,0.00037247,2]
[368289460,1751094637737,-462.59,0.00037315,2]
[368289461,1751094637747,-462.59,0.00037315,2]
[368289462,1751094637757,-462.59,0.00037315,2]
[368289463,1751094637766,-462.59,0.00037315,2]
[368289464,1751094637776,-462.59,0.00037315,2]
[368289465,1751094637785,-462.59,0.00037315,2]
[368289466,1751094637795,-277.43177793,0.00037348,36]
[368289467,1751094637805,-168.0,0.00037483,7]
[368289468,1751094637815,-1597.44,0.00037614,2]
[368289469,1751094637824,-614.81876,0.0003762,2]
[368289470,1751094637834,-224.36,0.000377,2]
[368289471,1751094637843,-462.59,0.000377,2]
[368289472,1751094637853,-277.43177793,0.00037797,37]
[368289473,1751094637862,-276.682373,0.0003789,16]
[368289474,1751094637872,-170.46493118,0.0003789,2]
[368289475,1751094637882,-2500.0,0.0003789,2]
[368289476,1751094637891,-2946.73483283,0.000379,2]
[368289477,1751094637903,-3070.10947038,0.000379,2]
[368289478,1751094637915,-18226.71295872,0.000379,2]
[368289479,1751094637927,-25735.76523807,0.000379,2]
[368289480,1751094637936,-2631.63720327,0.000379,2]
[368289482,1751094637946,-300.0,0.000379,13]
[368289484,1751094637955,-929.74791084,0.000379,10]
[368289486,1751094637964,-4207.5294,0.00037939,2]
[368289488,1751094637974,-2307.03813691,0.0003795,2]
[368289490,1751094637983,-2631.63720321,0.00037962,2]
[368289492,1751094637994,-501.20118982,0.00037973,5]
[368289493,1751094638003,-501.38129795,0.00037973,3]
[368289495,1751094638013,-168.63233536,0.00037973,5]
[368289497,1751094638022,-500.0,0.00037973,5]
[368289498,1751094638032,-506.15758448,0.00037973,5]
[368289499,1751094638041,-501.47031898,0.00037973,5]
[368289500,1751094638051,-500.0,0.00037973,5]
[368289501,1751094638061,-399.03368741,0.00037973,3]
[368289504,1751094638073,-103.1706661,0.00037973,3]
[368289506,1751094638082,-2307.03813691,0.0003798,2]
[368289508,1751094638091,-1477.84223393,0.0003799,2]
[368289511,1751094638115,-3160.49299523,0.0003799,2]
[368289513,1751094638126,-4204.82971731,0.0003799,2]
[368289710,1751094639904,-24623.38698819,0.0003799,2]
[368289719,1751094639990,-940.0,0.0003799,2]
[368289721,1751094640002,-437.78,0.0003799,2]
[368289732,1751094640097,-2156.82302471,0.0003799,2]
[368289735,1751094640107,-500.0,0.0003799,7]
[368289737,1751094640116,-151.91449074,0.0003799,7]
[368289740,1751094640126,-202.3669218,0.0003799,7]
[368289742,1751094640135,-150.0,0.0003799,7]
[368289744,1751094640144,-200.66376207,0.0003799,7]
[368289746,1751094640154,-150.0,0.0003799,7]
[368289748,1751094640163,-252.30179745,0.0003799,2]
[368289750,1751094640172,-252.46460056,0.0003799,7]
[368289751,1751094640181,-150.0,0.0003799,2]
[368289753,1751094640190,-150.0,0.0003799,7]
[368289755,1751094640199,-3413.80694537,0.0003799,4]
[368289758,1751094640211,-2627.37505796,0.0003799,4]
[368289760,1751094640222,-60004.72289211,0.0003799,4]
[368289762,1751094640237,-1417.58648194,0.0003799,4]
[368290006,1751094642696,-11394.97509636,0.0003799,4]
[368290008,1751094642708,-500.0,0.0003799,4]
[368290012,1751094642736,-1245.98926427,0.0003799,4]
[368290086,1751094643345,-2734.01518264,0.0003799,4]
[368290089,1751094643363,-5126.57483142,0.0003799,4]
[368290092,1751094643374,-22327.92425895,0.0003799,4]
[368290327,1751094645652,-167.19331834,0.000379,15]
[368290329,1751094645662,-15641.06335198,0.0003799,4]
[368290331,1751094645672,-252.24259128,0.0003799,7]
[368290333,1751094645681,-251.85364889,0.0003799,7]
[368290335,1751094645690,-10958.97545092,0.0003799,4]
[368290351,1751094645839,-690.90135285,0.0003799,4]
[368290798,1751094650305,426.561971,0.00024099,2]
[368290829,1751094650596,426.561971,0.00024373,2]
[368290864,1751094650910,426.561971,0.00024647,2]
[368290896,1751094651214,426.561971,0.00024921,2]
[368291179,1751094671413,805.55053,0.00024099,2]
[368291180,1751094671730,805.55053,0.00024373,2]
[368291181,1751094672041,805.55053,0.00024647,2]
[368291182,1751094672359,805.55053,0.00024921,2]
[368291183,1751094685071,157.285072,0.00024099,2]
[368291184,1751094686570,716.483532,0.00024099,2]
[368291185,1751094686887,716.483532,0.00024373,2]
[368291186,1751094687194,716.483532,0.00024647,2]
[368291187,1751094687762,716.483532,0.00024921,2]
[368291188,1751094692136,184.489105,0.00024099,2]
[368291189,1751094847339,151.72862881,0.00024921,2]
[368291190,1751094847831,170.76887742,0.00024921,2]
[368291191,1751094847880,170.76887742,0.00024921,2]
[368291192,1751094850927,151.0,0.00024921,2]
[368291193,1751094850952,195.16443133,0.00024921,2]
[368291194,1751095352618,159.34,0.00013699,2]
[368291203,1751095609419,355.468309,0.00024099,2]
[368291204,1751095609710,355.468309,0.00024373,2]
[368291205,1751095610032,355.468309,0.00024647,2]
[368291206,1751095610347,355.468309,0.00024921,2]
[368291207,1751095618101,-167.41967008,0.00031277,2]
[368291208,1751095618898,5000.0,0.00024,5]
[368291209,1751095630856,671.292108,0.00024099,2]
[368291210,1751095631334,671.292108,0.00024373,2]
[368291211,1751095632013,671.292108,0.00024647,2]
[368291212,1751095632435,671.292108,0.00024921,2]
[368291213,1751095638374,152.24632562,0.00028,2]
[368291214,1751095644230,597.06961,0.00024099,2]
[368291215,1751095644537,597.06961,0.00024373,2]
[368291216,1751095645277,597.06961,0.00024647,2]
[368291217,1751095645574,597.06961,0.00024921,2]
[368291220,1751095714521,2908.0644424,0.000232,2]
[368291221,1751095717707,2400.0,0.000151,2]
[368291222,1751095717736,7848.45038251,0.000151,2]
[368291223,1751095717763,17014.93337933,0.000151,2]
[368291233,1751095762072,-592.5498792,0.000232,2]
[368291234,1751095762096,-200.0,0.000235,2]
[368291235,1751095762120,-33.58032992,0.00031277,2]
[368291236,1751095762146,-355.468309,0.00032876,4]
[368291237,1751095762168,-355.468309,0.00032876,4]
[368291238,1751095762191,-671.292108,0.00032876,4]
[368291239,1751095762212,-671.292108,0.00032876,4]
[368291240,1751095762236,-597.06961,0.00032876,4]
[368291241,1751095762258,-597.06961,0.00032876,4]
[368291242,1751095762280,-355.468309,0.0003315,4]
[368291243,1751095762302,-243.07458988,0.0003315,4]
[368291249,1751095831926,-204.0,0.00033149,3]
[368291250,1751095831936,-1600.0,0.00033149,3]
[368291251,1751095831946,-112.39371912,0.0003315,4]
[368291252,1751095831955,-671.292108,0.0003315,4]
[368291253,1751095831965,-671.292108,0.0003315,4]
[368291254,1751095831975,-597.06961,0.0003315,4]
[368291255,1751095831984,-597.06961,0.0003315,4]
[368291256,1751095831994,-355.468309,0.00033423,4]
[368291257,1751095832004,-671.292108,0.00033423,4]
[368291258,1751095832014,-597.06961,0.00033423,4]
[368291259,1751095832023,-355.468309,0.00033424,4]
[368291260,1751095832033,-355.468309,0.00033424,4]
[368291261,1751095832043,-671.292108,0.00033424,4]
[368291262,1751095832053,-671.292108,0.00033424,4]
[368291263,1751095832063,-597.06961,0.00033424,4]
[368291264,1751095832073,-597.06961,0.00033424,4]
[368291265,1751095832084,-355.468309,0.00033697,4]
[368291266,1751095832094,-671.292108,0.00033697,4]
[368291267,1751095832104,-597.06961,0.00033697,4]
[368291268,1751095832113,-355.468309,0.00033698,4]
[368291269,1751095832123,-355.468309,0.00033698,4]
[368291270,1751095832133,-671.292108,0.00033698,4]
[368291271,1751095832143,-52.14157713,0.00033698,4]
[368291275,1751095832272,-619.15053087,0.00033698,4]
[368291276,1751095832283,-597.06961,0.00033698,4]
[368291277,1751095832293,-597.06961,0.00033698,4]
[368291278,1751095832304,-355.468309,0.00033968,4]
[368291279,1751095832314,-671.292108,0.00033968,4]
[368291281,1751095832324,-597.06961,0.00033968,4]
[368291283,1751095832333,-355.468309,0.00033971,4]
[368291285,1751095832342,-671.292108,0.00033971,4]
[368291287,1751095832353,-597.06961,0.00033971,4]
[368291288,1751095832362,-355.468309,0.00033972,4]
[368291289,1751095832372,-671.292108,0.00033972,4]
[368291290,1751095832382,-597.06961,0.00033972,4]
[368291291,1751095832391,-355.468309,0.00034242,4]
[368291292,1751095832401,-671.292108,0.00034242,4]
[368291293,1751095832410,-597.06961,0.00034242,4]
[368291294,1751095832419,-355.468309,0.00034246,4]
[368291295,1751095832428,-671.292108,0.00034246,4]
[368291296,1751095832437,-597.06961,0.00034246,4]
[368291297,1751095832447,-355.468309,0.00034516,4]
[368291298,1751095832456,-671.292108,0.00034516,4]
[368291299,1751095832465,-597.06961,0.00034516,4]
[368291300,1751095832475,-355.468309,0.0003452,4]
[368291301,1751095832485,-671.292108,0.0003452,4]
[368291302,1751095832495,-597.06961,0.0003452,4]
[368291303,1751095832504,-355.468309,0.0003479,4]
[368291304,1751095832513,-671.292108,0.0003479,4]
[368291305,1751095832523,-420.41036946,0.0003479,4]
[368291306,1751095832549,-176.65924054,0.0003479,4]
[368291307,1751095832559,-418.87164741,0.000349,31]
[368291308,1751095832569,-355.468309,0.00035064,4]
[368291309,1751095832578,-267.5298886,0.00035064,4]
[368291313,1751095837804,-403.7622194,0.00035064,4]
[368291314,1751095837813,-597.06961,0.00035064,4]
[368291315,1751095837823,-355.468309,0.00035338,4]
[368291316,1751095837833,-671.292108,0.00035338,4]
[368291317,1751095837842,-597.06961,0.00035338,4]
[368291318,1751095837852,-418.87164736,0.00035417,32]
[368291319,1751095837863,-200.0,0.00035575,2]
[368291320,1751095837872,-245.05353797,0.00035575,2]
[368291321,1751095837882,-759.88,0.00035698,2]
[368291322,1751095837891,-800.0,0.00035756,3]
[368291323,1751095837901,-666.0,0.0003583,2]
[368291324,1751095837911,-418.87164736,0.00035934,33]
[368291325,1751095837920,-300.0,0.0003596,3]
[368291326,1751095837930,-23890.0,0.00036035,2]
[368291327,1751095837939,-307.76085086,0.000361,2]
[368291328,1751095837949,-170.16,0.00036282,2]
[368291329,1751095837959,-1000.0,0.00036282,2]
[368291330,1751095837968,-168.19,0.00036305,120]
[368291331,1751095837978,-155.794,0.00036342,45]
[368291332,1751095837987,-226.62,0.00036342,2]
[368291333,1751095837996,-180.18,0.00036363,2]
[368291334,1751095838006,-5885.69483955,0.00036383,2]
[368291336,1751095838327,-1350.109708,0.00036383,2]
[368291337,1751095838339,-1395.08545245,0.00036383,2]
[368291338,1751095838349,-462.59,0.00036411,2]
[368291339,1751095838359,-1415.56348164,0.00036444,2]
[368291340,1751095838375,-1146.70000002,0.00036444,2]
[368291341,1751095838387,-2374.42651834,0.00036444,2]
[368291342,1751095838397,-418.87164736,0.00036452,34]
[368291343,1751095838407,-153.78,0.00036883,2]
[368291344,1751095838416,-153.78,0.00036894,2]
[368291345,1751095838425,-153.78,0.00036905,2]
[368291346,1751095838435,-153.78,0.00036916,2]
[368291347,1751095838444,-153.78,0.00036927,2]
[368291348,1751095838453,-153.78,0.00036938,2]
[368291349,1751095838462,-153.78,0.00036949,2]
[368291350,1751095838471,-153.78,0.00036959,2]
[368291351,1751095838481,-418.87164736,0.00036969,35]
[368291352,1751095838491,-153.78,0.0003697,2]
[368291353,1751095838500,-153.78,0.00036981,2]
[368291354,1751095838510,-153.78,0.00036992,2]
[368291355,1751095838519,-2650.19915,0.00036993,2]
[368291356,1751095838562,-1802.25248265,0.00036993,2]
[368291477,1751095839959,-1563.23830314,0.00036993,2]
[368291480,1751095839971,-1155.00000005,0.00036993,2]
[368291481,1751095839982,-1082.64833014,0.00036993,2]
[368291492,1751095840083,-10924.48669171,0.00036993,2]
[368291494,1751095840092,-153.78,0.00037003,2]
[368291495,1751095840102,-153.78,0.00037014,2]
[368291497,1751095840111,-153.78,0.00037024,2]
[368291499,1751095840121,-153.78,0.00037035,2]
[368291501,1751095840130,-153.78,0.00037046,2]
[368291503,1751095840140,-153.78,0.00037057,2]
[368291505,1751095840149,-153.78,0.00037068,2]
[368291507,1751095840158,-207.51178,0.00037088,16]
[368291509,1751095840171,-418.87164736,0.00037486,36]
[368291511,1751095840180,-462.59,0.00037507,2]
[368291513,1751095840189,-1597.59,0.00037507,2]
[368291515,1751095840198,-835.41973025,0.00037522,2]
[368291517,1751095840208,-893.20435,0.0003761,2]
[368291519,1751095840217,-13790.0863,0.0003789,2]
[368291521,1751095840226,-1000.0,0.0003789,2]
[368291523,1751095840238,-428.8924,0.0003789,2]
[368291525,1751095840248,-2500.0,0.0003789,2]
[368291527,1751095840258,-300.0,0.000379,13]
[368291529,1751095840267,-167.19331834,0.000379,15]
[368291531,1751095840276,-2468.13448152,0.000379,2]
[368291533,1751095840288,-941.28290768,0.000379,2]
[368291535,1751095840297,-2076.33432324,0.000379,2]
[368291537,1751095840306,-2076.33432322,0.00037929,2]
[368291538,1751095840315,-2076.33432322,0.00037958,2]
[368291540,1751095840324,-185.74457021,0.00037962,2]
[368291542,1751095840333,-351.8133527,0.00037962,2]
[368291543,1751095840342,-2219.6794991,0.00037963,2]
[368291545,1751095840352,-3409.41738919,0.00037963,2]
[368291547,1751095840362,-500.0,0.00037973,5]
[368291549,1751095840372,-500.0,0.00037973,5]
[368291551,1751095840381,-2076.33432322,0.00037988,2]
[368291552,1751095840391,-500.0,0.0003799,7]
[368291554,1751095840400,-206.33968654,0.0003799,7]
[368291556,1751095840410,-155.11745399,0.0003799,7]
[368291558,1751095840419,-150.0,0.0003799,7]
[368291560,1751095840429,-150.0,0.0003799,7]
[368291561,1751095840438,-150.0,0.0003799,7]
[368291563,1751095840447,-203.38515235,0.0003799,7]
[368291565,1751095840457,-253.83575743,0.0003799,2]
[368291567,1751095840466,-200.0,0.0003799,7]
[368291568,1751095840476,-3490.0938177,0.00037993,2]
[368291570,1751095840485,-9309.3194431,0.00037996,2]
[368291572,1751095840494,-167.9358415,0.00037996,2]
[368291574,1751095840503,-20774.0817948,0.00037996,2]
[368291576,1751095840515,-5437.35129998,0.00037996,2]
[368291579,1751095840542,-61075.30211632,0.00037996,2]
[368291581,1751095840551,-170.8436734,0.00037999,15]
[368291583,1751095840560,-249.84008195,0.00037999,7]
[368291584,1751095840569,-146808.13474004,0.00038,2]
[368291587,1751095840588,-1156.2,0.00038,2]
[368291589,1751095840599,-76971.73728712,0.00038,2]
[368291591,1751095840611,-1706.29566191,0.00038,2]
[368291593,1751095840622,-1422.76960474,0.00038,2]
[368291595,1751095840632,-364.31260006,0.00038,2]
[368291597,1751095840647,-924.5589717,0.00038,2]
[368291599,1751095840658,-378.925,0.00038,2]
[368291812,1751095842939,-2067.0,0.00038,2]
[368291833,1751095843119,-5098.0752,0.00038,2]
[368292132,1751095846053,-6657.1585501,0.00038,2]
[368293316,1751096247103,500.0,0.00027397,120]
[368293318,1751096305805,159.34,0.00013699,2]
[368293320,1751096799234,-347.71065444,0.0003,30]
[368293338,1751097032047,-150.88474436,0.0003,30]
[368293339,1751097032056,-201.0,0.00032137,2]
[368293340,1751097032066,-820.78671344,0.000348,2]
[368293341,1751097032078,-768.21328656,0.000348,2]
[368293342,1751097032087,-159.72,0.00036,2]
[368293343,1751097032096,-201.0,0.00036118,10]
[368293344,1751097032105,-666.0,0.00036635,2]
[368293345,1751097032115,-187.87,0.00036767,2]
[368293346,1751097032124,-113.67314108,0.000369,35]
[368293347,1751097032139,-221.42417704,0.000369,35]
[368293348,1751097032149,-1000.0,0.00036946,2]
[368293349,1751097032158,-207.4,0.00036952,2]
[368293350,1751097032167,-167.28,0.00036973,2]
[368293351,1751097032176,-300.0,0.00036974,3]
[368293352,1751097032185,-865.54991946,0.00036974,3]
[368293353,1751097032200,-734.45008054,0.00036974,3]
[368293354,1751097032209,-347.36304592,0.00036974,30]
[368293355,1751097032219,-400.0,0.00036974,2]
[368293356,1751097032230,-1794.60531315,0.00036975,2]
[368293357,1751097032241,-2153.76133533,0.00036975,2]
[368293358,1751097032261,-11088.31335152,0.00036975,2]
[368293359,1751097032270,-164.91,0.00037048,2]
[368293360,1751097032279,-3078.64,0.00037058,33]
[368293361,1751097032289,-999.11,0.00037141,2]
[368293362,1751097032298,-155.794,0.00037175,47]
[368293363,1751097032308,-886.54,0.00037175,2]
[368293364,1751097032319,-153.94,0.00037213,2]
[368293365,1751097032328,-335.09731788,0.00037348,36]
[368293366,1751097032338,-835.41973025,0.00037352,2]
[368293367,1751097032347,-922.97782,0.0003762,2]
[368293368,1751097032357,-282.96094764,0.00037795,2]
[368293369,1751097032366,-335.09731788,0.00037797,37]
[368293370,1751097032375,-300.0,0.000378,13]
[368293371,1751097032385,-286.90052767,0.00037886,30]
[368293372,1751097032400,-6407.50842506,0.00037886,30]
[368293373,1751097032412,-1049.05504559,0.00037886,30]
[368293396,1751097037967,-7149.62387859,0.00037886,30]
[368293397,1751097037977,-3444.13377545,0.0003789,2]
[368293398,1751097037988,-1000.0,0.00037899,2]
[368293399,1751097037997,-867.76471684,0.000379,10]
[368293400,1751097038007,-700.0,0.000379,13]
[368293401,1751097038018,-1827.90892472,0.000379,2]
[368293402,1751097038027,-1827.9089246,0.00037921,2]
[368293403,1751097038036,-1827.9089246,0.00037951,2]
[368293404,1751097038046,-3444.13377542,0.00037955,2]
[368293405,1751097038055,-500.0,0.00037973,5]
[368293406,1751097038065,-469.44723056,0.00037977,2]
[368293407,1751097038075,-166.55,0.00037977,2]
[368293408,1751097038085,-300.0,0.00037977,2]
[368293409,1751097038094,-500.0,0.00037977,2]
[368293410,1751097038104,-500.0,0.00037977,2]
[368293411,1751097038114,-426.4807781,0.00037977,2]
[368293412,1751097038123,-1827.9089246,0.00037982,2]
[368293413,1751097038133,-43069.05249589,0.0003799,7]
[368293414,1751097038154,-17351.30777463,0.0003799,7]
[368293415,1751097038166,-5200.0,0.0003799,7]
[368293416,1751097038193,-5246.44938273,0.0003799,7]
[368293417,1751097038204,-1730.39892065,0.0003799,7]
[368293418,1751097038355,-612.58427774,0.0003799,7]
[368293419,1751097038367,-642.76071279,0.0003799,7]
[368293420,1751097038378,-1109.46046499,0.0003799,7]
[368293421,1751097038390,-1042.82955653,0.0003799,7]
[368293422,1751097038411,-1826.05667201,0.0003799,7]
[368293423,1751097038422,-1613.87722957,0.0003799,7]
[368293424,1751097038433,-427.54756457,0.0003799,7]
[368293425,1751097038470,-487.16144789,0.0003799,7]
[368293460,1751097039037,-4438.46169469,0.0003799,7]
[368293584,1751097040228,-8664.80515376,0.0003799,7]
[368293592,1751097040290,-6476.000024,0.0003799,7]
[368293594,1751097040300,-150.0,0.0003799,7]
[368293596,1751097040309,-1551.42189536,0.0003799,4]
[368293598,1751097040321,-8407.84477944,0.0003799,4]
[368293600,1751097040332,-537.4417342,0.0003799,4]
[368293602,1751097040344,-1488.87600022,0.0003799,4]
[368293628,1751097040583,-23177.9119642,0.0003799,4]
[368293630,1751097040595,-859.85994139,0.0003799,4]
[368293633,1751097040607,-1031.34005861,0.0003799,4]
[368293635,1751097040618,-10642.22249436,0.0003799,4]
[368293637,1751097040630,-75957.93097322,0.0003799,4]
[368293639,1751097040640,-11241.3499856,0.00037992,4]
[368293641,1751097040649,-97638.930909,0.00037993,2]
[368293643,1751097040659,-7113.9981742,0.00037993,2]
[368293645,1751097040669,-166.1265009,0.00037999,7]
[368293647,1751097040678,-166.0,0.00037999,15]
[368293649,1751097040688,-149210.57991225,0.00038,2]
[368293651,1751097040697,-5000.0,0.00038,10]
[368293653,1751097040707,-156.072153,0.00038,7]
[368293655,1751097040716,-455.799843,0.00038,16]
[368293657,1751097040726,-201.383832,0.00038,7]
[368293659,1751097040735,-490.0,0.00038,2]
[368293661,1751097040745,-155.05,0.00038,2]
[368293663,1751097040755,-151.0,0.00038,2]
[368293665,1751097040764,-151.0,0.00038,7]
[368293667,1751097040774,-153.312681,0.00038,7]
[368293669,1751097040783,-289.954439,0.00038,7]
[368293671,1751097040792,-211.146581,0.00038,7]
[368293673,1751097040802,-151.0,0.00038,7]
[368293675,1751097040811,-151.0,0.00038,7]
[368293677,1751097040820,-151.0,0.00038,7]
[368293679,1751097040830,-192.796877,0.00038,7]
[368293681,1751097040839,-192.796877,0.00038,7]
[368293683,1751097040848,-3287.8622924,0.00038,2]
[368293685,1751097040858,-151.0,0.00038,7]
[368293687,1751097040868,-151.0,0.00038,7]
[368293689,1751097040878,-151.0,0.00038,7]
[368293691,1751097040888,-151.0,0.00038,7]
[368293693,1751097040897,-151.0,0.00038,7]
[368293695,1751097040906,-151.0,0.00038,7]